bitfinex-derivatives/quotes_BTCF0:USTF0_20241208
["timestamp","ask_amount","ask_price","bid_price","bid_amount"]
[1733623415417,0.036097,99866.0,99865.0,0.05452945]
[1733623415615,0.036097,99866.0,99865.0,0.042017]
[1733623416018,0.036097,99866.0,99865.0,0.046017]
[1733623416911,0.04609192,99866.0,99865.0,0.011]
[1733623417214,0.09475518,99866.0,99865.0,0.011]
[1733623417412,0.04609192,99866.0,99865.0,0.011]
[1733623417615,0.04609192,99866.0,99860.0,0.00160649]
[1733623417921,0.395898,99861.0,99860.0,0.00160649]
[1733623418219,0.395898,99861.0,99860.0,0.00010442]
[1733623418427,0.51510825,99861.0,99860.0,0.00010442]
[1733623418910,0.395898,99861.0,99860.0,0.00210442]
[1733623419112,0.395898,99861.0,99860.0,0.00710442]
[1733623420919,0.458998,99861.0,99860.0,0.00710442]
[1733623421314,0.57812545,99861.0,99860.0,0.00710442]
[1733623422423,0.458998,99861.0,99860.0,0.00710442]
[1733623424119,0.458998,99861.0,99860.0,0.00494442]
[1733623424621,0.458998,99861.0,99831.0,0.0303]
[1733623424622,0.42398,99861.0,99831.0,0.0303]
[1733623424814,0.035029,99832.0,99831.0,0.065329]
[1733623425019,0.035109,99832.0,99831.0,0.06845844]
[1733623426627,0.035109,99832.0,99831.0,0.0734669]
[1733623426820,0.035109,99832.0,99831.0,0.07346716]
[1733623427520,0.00208,99832.0,99831.0,0.07346716]
[1733623428121,0.00208,99832.0,99831.0,0.08598484]
[1733623428621,0.00208,99832.0,99831.0,0.07346716]
[1733623429221,0.00208,99832.0,99831.0,0.00813816]
[1733623429422,0.00208,99832.0,99831.0,0.00500846]
[1733623431011,0.00108,99832.0,99831.0,0.00500846]
[1733623436417,0.036109,99832.0,99831.0,0.00500846]
[1733623441526,0.036109,99832.0,99831.0,0.03830846]
[1733623442230,0.036109,99832.0,99831.0,0.04143813]
[1733623442738,0.036109,99832.0,99831.0,0.03830846]
[1733623443230,0.036109,99832.0,99831.0,0.04143818]
[1733623443432,0.396909,99832.0,99831.0,0.00500846]
[1733623445435,0.48627476,99832.0,99831.0,0.00500846]
[1733623446339,0.396909,99832.0,99831.0,0.00500846]
[1733623447742,0.035029,99831.0,99830.0,0.0001272]
[1733623448139,0.035109,99831.0,99830.0,0.0001272]
[1733623449237,0.035109,99831.0,99830.0,0.00325723]
[1733623449536,0.037109,99831.0,99830.0,0.00325723]
[1733623450933,0.037109,99831.0,99830.0,0.0001272]
[1733623451248,0.037109,99831.0,99830.0,0.0032573]
[1733623454442,0.18617776,99831.0,99830.0,0.0001272]
[1733623454645,0.18617776,99831.0,99830.0,0.00325729]
[1733623455341,0.037109,99831.0,99830.0,0.00325729]
[1733623458748,0.037109,99831.0,99830.0,0.00325731]
[1733623460848,0.18639131,99831.0,99830.0,0.00325731]
[1733623461247,0.18639131,99831.0,99830.0,0.0001272]
[1733623461945,0.18639131,99831.0,99830.0,0.00325736]
[1733623462149,0.037109,99831.0,99830.0,0.00325736]
[1733623462651,0.08579311,99831.0,99830.0,0.00325736]
[1733623463246,0.08579394,99831.0,99830.0,0.00325736]
[1733623464453,0.18654292,99831.0,99830.0,0.00325736]
[1733623464644,0.037109,99831.0,99830.0,0.0001272]
[1733623464845,0.037109,99831.0,99830.0,0.00325709]
[1733623467347,0.08579044,99831.0,99830.0,0.00325709]
[1733623470556,0.037109,99831.0,99830.0,0.00325709]
[1733623473259,0.18653419,99831.0,99830.0,0.00325709]
[1733623474559,0.18653419,99831.0,99830.0,0.0001272]
[1733623474765,0.18653419,99831.0,99830.0,0.00325711]
[1733623475256,0.18653419,99831.0,99830.0,0.0001272]
[1733623475666,0.18653419,99831.0,99830.0,0.00325711]
[1733623476856,0.54733419,99831.0,99830.0,0.00325711]
[1733623479057,0.51230519,99831.0,99830.0,0.03828611]
[1733623479357,0.36288,99831.0,99830.0,0.03828611]
[1733623481755,0.36288,99831.0,99830.0,0.03828605]
[1733623483454,0.00208,99831.0,99830.0,0.39908605]
[1733623483757,0.00208,99831.0,99830.0,0.69880924]
[1733623483960,0.00208,99831.0,99830.0,0.72003287]
[1733623484161,0.00208,99831.0,99830.0,1.02011087]
[1733623484459,0.00208,99831.0,99830.0,0.69916405]
[1733623484756,0.01008298,99839.0,99830.0,0.69916405]
[1733623484757,0.089616,99836.0,99830.0,0.69916288]
[1733623484960,0.08973036,99840.0,99839.0,0.035026]
[1733623485259,0.00056001,99842.0,99841.0,0.035025]
[1733623485260,0.0395709,99842.0,99841.0,0.035025]
[1733623485561,0.51022519,99855.0,99841.0,0.18326275]
[1733623485562,0.11944255,99844.0,99841.0,0.18326275]
[1733623485858,0.06944255,99847.0,99843.0,0.18013351]
[1733623486061,0.14942519,99856.0,99844.0,0.20989979]
[1733623486270,8.527e-05,99860.0,99859.0,0.035019]
[1733623486456,8.527e-05,99860.0,99859.0,0.03814824]
[1733623486761,8.527e-05,99860.0,99859.0,0.05082263]
[1733623487871,0.00308527,99860.0,99859.0,0.05082263]
[1733623488456,0.01002914,99860.0,99859.0,0.00328924]
[1733623488761,8.527e-05,99860.0,99859.0,0.00328924]
[1733623488965,0.00108527,99860.0,99859.0,0.00328924]
[1733623491268,0.00108527,99860.0,99859.0,0.00016]
[1733623494367,0.03610427,99860.0,99859.0,0.00016]
[1733623500365,0.03710427,99860.0,99859.0,0.00016]
[1733623500574,0.39790427,99860.0,99859.0,0.00016]
[1733623500767,0.44657578,99860.0,99859.0,0.00016]
[1733623500972,0.45257578,99860.0,99859.0,0.00016]
[1733623502164,0.55278676,99860.0,99859.0,0.035179]
[1733623502365,0.40390427,99860.0,99859.0,0.035179]
[1733623503165,0.40390427,99860.0,99859.0,0.00016]
[1733623505775,0.55278676,99860.0,99859.0,0.00016]
[1733623505964,0.40390427,99860.0,99859.0,0.00016]
[1733623506165,0.45257324,99860.0,99859.0,0.00016]
[1733623507067,0.63145112,99860.0,99859.0,0.00016]
[1733623507269,0.45257324,99860.0,99859.0,0.00016]
[1733623507666,0.40390427,99860.0,99859.0,0.00016]
[1733623509475,0.40390427,99860.0,99859.0,0.035179]
[1733623510067,0.40390427,99860.0,99859.0,0.03830792]
[1733623511576,0.40390427,99860.0,99859.0,0.035179]
[1733623511766,0.40390427,99860.0,99859.0,0.03830785]
[1733623514266,0.36888527,99860.0,99859.0,0.03830785]
[1733623515281,0.40390427,99860.0,99859.0,0.03830785]
[1733623515774,0.40390427,99860.0,99859.0,0.21812452]
[1733623515982,0.40390427,99860.0,99859.0,0.03830785]
[1733623517181,0.40390427,99860.0,99859.0,0.21812452]
[1733623517375,0.40390427,99860.0,99859.0,0.03830785]
[1733623517973,0.40390427,99860.0,99859.0,0.035179]
[1733623518174,0.40390427,99860.0,99859.0,0.03830781]
[1733623520383,0.36888527,99860.0,99859.0,0.03830781]
[1733623520776,0.00808527,99860.0,99859.0,0.03830781]
[1733623520980,0.005,99877.0,99876.0,0.035013]
[1733623521172,0.395813,99878.0,99877.0,0.035013]
[1733623521585,0.395813,99878.0,99877.0,0.035173]
[1733623522086,0.395813,99878.0,99877.0,0.03830146]
[1733623522384,0.395813,99878.0,99877.0,0.035173]
[1733623522772,0.44446811,99878.0,99877.0,0.035173]
[1733623522977,0.44446795,99878.0,99877.0,0.035173]
[1733623523288,0.44946795,99878.0,99877.0,0.035173]
[1733623523980,0.44946795,99878.0,99877.0,0.03830126]
[1733623524188,0.55779798,99878.0,99877.0,0.03930126]
[1733623524678,0.408813,99878.0,99877.0,0.03930126]
[1733623524890,0.3738,99878.0,99877.0,0.03930126]
[1733623525187,0.3738,99878.0,99877.0,0.036173]
[1733623525374,0.013,99878.0,99877.0,0.396973]
[1733623525580,0.013,99878.0,99877.0,0.40010118]
[1733623525780,0.013,99878.0,99877.0,0.41261287]
[1733623526081,0.008,99878.0,99877.0,0.41261287]
[1733623526387,0.003,99878.0,99877.0,0.41161287]
[1733623526882,0.001,99878.0,99877.0,0.41161287]
[1733623527476,0.001,99878.0,99877.0,0.39910118]
[1733623527678,0.001,99878.0,99877.0,0.41161297]
[1733623528081,0.00012688,99880.0,99879.0,0.035012]
[1733623528280,0.00012688,99880.0,99879.0,0.03814018]
[1733623528480,0.00012688,99880.0,99879.0,0.03830018]
[1733623529581,0.00112688,99880.0,99879.0,0.03830018]
[1733623530085,0.00212688,99880.0,99879.0,0.03830018]
[1733623530885,0.00212688,99880.0,99879.0,0.05081137]
[1733623531090,0.00212688,99880.0,99879.0,0.03830018]
[1733623531690,0.00212688,99880.0,99879.0,0.035172]
[1733623532488,0.00212688,99880.0,99879.0,0.04768318]
[1733623532697,0.00212688,99880.0,99879.0,0.035172]
[1733623538785,0.00212688,99880.0,99879.0,0.41161153]
[1733623538786,8.8e-07,99880.0,99879.0,0.41161153]
[1733623540503,0.005,99895.0,99879.0,0.41161153]
[1733623540800,0.04301886,99900.0,99899.0,0.035005]
[1733623540987,0.04301886,99900.0,99879.0,0.00916]
[1733623541188,0.395811,99886.0,99885.0,0.03501]
[1733623541789,0.54461754,99886.0,99885.0,0.03501]
[1733623542191,0.395811,99886.0,99885.0,0.03501]
[1733623542700,0.44446504,99886.0,99885.0,0.03501]
[1733623542893,0.44446504,99886.0,99885.0,0.03601]
[1733623543502,0.44446504,99886.0,99885.0,0.03701]
[1733623544197,0.44746504,99886.0,99885.0,0.03701]
[1733623544799,0.40598079,99886.0,99885.0,0.03701]
[1733623544996,0.40898079,99886.0,99885.0,0.03701]
[1733623545588,0.40898079,99886.0,99885.0,0.03601]
[1733623546200,0.41498079,99886.0,99885.0,0.03601]
[1733623546800,0.41398079,99886.0,99885.0,0.03501]
[1733623547102,0.41098079,99886.0,99885.0,0.03501]
[1733623547304,0.40898079,99886.0,99885.0,0.03501]
[1733623547502,0.41498079,99886.0,99885.0,0.03601]
[1733623547893,0.41198079,99886.0,99885.0,0.03601]
[1733623548098,0.41498079,99886.0,99885.0,0.03601]
[1733623548995,0.41398079,99886.0,99885.0,0.03501]
[1733623549703,0.41498079,99886.0,99885.0,0.03601]
[1733623550100,0.41298079,99886.0,99885.0,0.03501]
[1733623551706,0.41198079,99886.0,99885.0,0.03501]
[1733623552202,0.41198079,99886.0,99885.0,0.03601]
[1733623552203,0.41398079,99886.0,99885.0,0.03601]
[1733623552791,0.57963461,99886.0,99885.0,0.03601]
[1733623552990,0.57763461,99886.0,99885.0,0.03501]
[1733623553913,0.57563461,99886.0,99885.0,0.03501]
[1733623554199,0.57463461,99886.0,99885.0,0.03813815]
[1733623554409,0.58063461,99886.0,99885.0,0.03913815]
[1733623554902,0.46063455,99886.0,99885.0,0.03913815]
[1733623555105,0.46263455,99886.0,99885.0,0.03913815]
[1733623555903,0.46263455,99886.0,99885.0,0.00412815]
[1733623556703,0.46263479,99886.0,99885.0,0.00412815]
[1733623557007,0.46063479,99886.0,99885.0,0.03813815]
[1733623557207,0.46163479,99886.0,99885.0,0.03813815]
[1733623557812,0.46163479,99886.0,99885.0,0.00312815]
[1733623557813,0.64068466,99886.0,99885.0,0.00312815]
[1733623558109,0.58013082,99886.0,99885.0,0.00412815]
[1733623560012,0.41498079,99886.0,99885.0,0.00412815]
[1733623560212,0.41398079,99886.0,99885.0,0.00412815]
[1733623560705,0.40898079,99886.0,99885.0,0.00312815]
[1733623560902,0.41398079,99886.0,99885.0,0.00412815]
[1733623564512,0.41398079,99886.0,99885.0,0.00412825]
[1733623564715,0.56317726,99886.0,99885.0,0.00412825]
[1733623565212,0.41398079,99886.0,99885.0,0.00412825]
[1733623565701,0.56317726,99886.0,99885.0,0.00412825]
[1733623566906,0.41398079,99886.0,99885.0,0.00412825]
[1733623567302,0.56317726,99886.0,99885.0,0.00412825]
[1733623567612,0.56317726,99886.0,99885.0,0.001]
[1733623567815,0.46263677,99886.0,99885.0,0.001]
[1733623568204,0.82343677,99886.0,99885.0,0.001]
[1733623568410,0.77478079,99886.0,99885.0,0.001]
[1733623568612,0.82343906,99886.0,99885.0,0.00412829]
[1733623568928,0.82343906,99886.0,99885.0,0.001]
[1733623572720,0.93899138,99886.0,99885.0,0.001]
[1733623574117,0.035017,99866.0,99865.0,0.17935447]
[1733623574312,0.035017,99864.0,99863.0,0.17935447]
[1733623574614,0.035017,99864.0,99857.0,0.17935447]
[1733623574807,0.035017,99864.0,99855.0,0.00150206]
[1733623574808,0.3608,99858.0,99855.0,0.00150206]
[1733623575013,0.21403538,99856.0,99855.0,0.00150206]
[1733623575211,0.08368394,99856.0,99855.0,0.00150206]
[1733623575908,0.09383796,99856.0,99855.0,0.00150206]
[1733623576314,0.2240099,99856.0,99855.0,0.00463093]
[1733623576512,0.09383796,99856.0,99855.0,0.00463093]
[1733623576719,0.09383796,99856.0,99855.0,0.00763093]
[1733623577012,0.09383796,99856.0,99855.0,0.01163093]
[1733623577420,0.09383796,99856.0,99855.0,0.00763093]
[1733623577622,0.09483796,99856.0,99855.0,0.01063093]
[1733623578321,0.09483796,99856.0,99855.0,0.00750206]
[1733623578718,0.09484219,99856.0,99855.0,0.00750206]
[1733623579220,0.09484219,99856.0,99855.0,0.006]
[1733623582820,0.04617402,99856.0,99855.0,0.006]
[1733623591217,0.16525427,99856.0,99855.0,0.006]
[1733623593321,0.16525427,99856.0,99855.0,0.00912907]
[1733623593624,0.04617402,99856.0,99855.0,0.00912907]
[1733623594122,0.1652624,99856.0,99855.0,0.006]
[1733623594322,0.04617402,99856.0,99855.0,0.006]
[1733623595620,0.04617402,99856.0,99855.0,0.0091291]
[1733623596519,0.04617402,99856.0,99855.0,0.0441501]
[1733623601231,0.04617402,99856.0,99855.0,0.22350457]
[1733623601525,0.04617402,99856.0,99855.0,0.0441501]
[1733623603124,0.16534553,99856.0,99855.0,0.28328939]
[1733623603321,0.16534553,99856.0,99855.0,0.0441501]
[1733623603519,0.04617402,99856.0,99855.0,0.0441501]
[1733623603725,0.16556404,99856.0,99855.0,0.28328939]
[1733623604327,0.16556404,99856.0,99855.0,0.0441501]
[1733623604328,0.04617402,99856.0,99855.0,0.0441501]
[1733623605335,0.16563088,99856.0,99855.0,0.04414992]
[1733623605522,0.16563088,99856.0,99855.0,0.04414999]
[1733623605723,0.1656411,99856.0,99855.0,0.04414999]
[1733623605928,0.04617402,99856.0,99855.0,0.04414999]
[1733623606325,0.16563932,99856.0,99855.0,0.04414999]
[1733623607332,0.04617402,99856.0,99855.0,0.04414999]
[1733623607631,0.001,99856.0,99855.0,0.72930467]
[1733623608018,0.001,99856.0,99855.0,1.11403666]
[1733623608331,0.001,99856.0,99855.0,0.74181969]
[1733623608532,0.001,99856.0,99855.0,0.72617568]
[1733623608734,0.001,99856.0,99855.0,0.74682392]
[1733623609327,0.001,99856.0,99855.0,1.10676254]
[1733623609930,0.001,99856.0,99855.0,0.74682392]
[1733623611828,0.001,99856.0,99855.0,1.10676254]
[1733623612023,0.001,99856.0,99855.0,0.74682392]
[1733623612925,0.001,99856.0,99855.0,0.60232437]
[1733623613734,0.001,99856.0,99855.0,0.42246924]
[1733623613944,0.001,99856.0,99855.0,0.60229377]
[1733623614239,0.001,99856.0,99855.0,0.42246924]
[1733623614733,0.001,99856.0,99855.0,0.43667135]
[1733623614929,0.001,99856.0,99855.0,0.42246924]
[1733623615436,0.001,99856.0,99855.0,0.60429524]
[1733623617631,0.001,99856.0,99855.0,0.59178115]
[1733623617835,0.12540533,99856.0,99855.0,0.59178115]
[1733623618033,0.12540533,99856.0,99855.0,0.23098115]
[1733623618034,0.06862,99856.0,99855.0,0.23098115]
[1733623618334,0.06862,99856.0,99855.0,0.04915515]
[1733623619336,0.21747032,99856.0,99855.0,0.04915515]
[1733623620135,0.06862,99856.0,99855.0,0.04915515]
[1733623621541,0.06862,99856.0,99855.0,0.04414952]
[1733623621932,0.07889595,99856.0,99855.0,0.04414952]
[1733623622532,0.07889595,99856.0,99855.0,0.22397405]
[1733623622533,0.01127595,99856.0,99855.0,0.22397405]
[1733623622732,0.01127595,99856.0,99855.0,0.04915569]
[1733623622935,0.001,99856.0,99855.0,0.04414952]
[1733623624139,0.001,99856.0,99855.0,0.04915569]
[1733623624537,0.001,99856.0,99855.0,0.041021]
[1733623624742,0.001,99856.0,99855.0,0.04915605]
[1733623627932,0.001,99856.0,99855.0,0.041021]
[1733623628140,0.001,99856.0,99855.0,0.0491559]
[1733623628540,0.1201772,99856.0,99855.0,0.0491559]
[1733623629451,0.1201772,99856.0,99855.0,0.04915593]
[1733623631537,0.001,99856.0,99855.0,0.04915593]
[1733623634239,0.03602,99856.0,99855.0,0.04915593]
[1733623634944,0.03602,99856.0,99855.0,0.041021]
[1733623635148,0.03602,99856.0,99855.0,0.04915638]
[1733623636053,0.03602,99856.0,99855.0,0.2290505]
[1733623636437,0.12542831,99856.0,99855.0,0.04915638]
[1733623636643,0.12542831,99856.0,99855.0,0.04414999]
[1733623636844,0.03602,99856.0,99855.0,0.04414999]
[1733623637355,0.03602,99856.0,99855.0,0.22404447]
[1733623637541,0.12542831,99856.0,99855.0,0.22404565]
[1733623637742,0.12542831,99856.0,99855.0,0.18902465]
[1733623637743,0.03602,99856.0,99855.0,0.18902465]
[1733623638045,0.03602,99856.0,99855.0,0.00912899]
[1733623638243,0.03602,99856.0,99855.0,0.006]
[1733623638442,0.03602,99856.0,99845.0,0.035024]
[1733623638443,0.035021,99855.0,99845.0,0.17989566]
[1733623638649,0.395824,99846.0,99845.0,0.17989566]
[1733623638836,0.395904,99846.0,99845.0,0.18803143]
[1733623639037,0.395904,99846.0,99845.0,0.22305543]
[1733623639239,0.395904,99846.0,99845.0,0.04315977]
[1733623639849,0.395904,99846.0,99845.0,0.03815314]
[1733623640356,0.396904,99846.0,99845.0,0.03915314]
[1733623640849,0.396904,99846.0,99845.0,0.04215314]
[1733623642555,0.396904,99846.0,99845.0,0.03915314]
[1733623642852,0.428304,99846.0,99845.0,0.04215314]
[1733623644752,0.428304,99846.0,99845.0,0.04716012]
[1733623644947,0.428304,99846.0,99845.0,0.04716034]
[1733623645146,0.54743133,99846.0,99845.0,0.04716034]
[1733623645342,0.55730771,99846.0,99845.0,0.04716034]
[1733623645954,0.43818038,99846.0,99845.0,0.04716034]
[1733623646150,0.55730771,99846.0,99845.0,0.04716034]
[1733623646351,0.19650771,99846.0,99845.0,0.04716034]
[1733623646558,0.55730771,99846.0,99845.0,0.04716034]
[1733623646861,0.37275638,99846.0,99845.0,0.04716034]
[1733623647052,0.46212399,99846.0,99845.0,0.04716034]
[1733623647246,0.46213906,99846.0,99845.0,0.04716034]
[1733623648355,0.46213906,99846.0,99845.0,0.04716011]
[1733623648553,0.37275638,99846.0,99845.0,0.04716011]
[1733623649955,0.37275638,99846.0,99845.0,0.28696838]
[1733623650161,0.37275638,99846.0,99845.0,0.04716011]
[1733623651755,0.37275638,99846.0,99845.0,0.04716021]
[1733623652152,0.37275638,99846.0,99845.0,0.04716012]
[1733623653254,0.36288,99846.0,99845.0,0.04716012]
[1733623658472,0.36288,99846.0,99845.0,0.039024]
[1733623658769,0.36288,99846.0,99845.0,0.34691837]
[1733623658770,0.00208,99846.0,99845.0,0.34691837]
[1733623658978,0.09438337,99859.0,99853.0,0.431521]
[1733623659179,0.36132001,99865.0,99864.0,0.035017]
[1733623659477,0.37059353,99865.0,99864.0,0.04315282]
[1733623660389,0.37059353,99865.0,99864.0,0.28305716]
[1733623660884,0.37059353,99865.0,99864.0,0.28405716]
[1733623661074,0.37059353,99865.0,99864.0,0.04515282]
[1733623661991,0.37059353,99865.0,99864.0,0.04515127]
[1733623664678,0.37059353,99865.0,99864.0,0.22491747]
[1733623664880,0.37059353,99865.0,99864.0,0.04515127]
[1733623665576,0.37059353,99865.0,99864.0,0.037017]
[1733623665779,0.48972086,99865.0,99864.0,0.04515141]
[1733623666479,0.52473786,99865.0,99864.0,0.04515141]
[1733623666684,0.40561053,99865.0,99864.0,0.04014562]
[1733623666988,0.40561053,99865.0,99864.0,0.0451515]
[1733623667789,0.40561053,99865.0,99864.0,0.0101345]
[1733623667987,0.40561053,99865.0,99864.0,0.00512862]
[1733623668192,0.45427666,99865.0,99864.0,0.00512862]
[1733623670478,0.45427666,99865.0,99864.0,0.002]
[1733623670687,0.035019,99859.0,99858.0,0.00016]
[1733623670886,0.08368513,99859.0,99858.0,0.00328906]
[1733623671085,0.08376513,99859.0,99858.0,0.00328906]
[1733623671783,0.08376513,99859.0,99858.0,0.00016]
[1733623672384,0.08376513,99859.0,99858.0,0.00328919]
[1733623672885,0.08476896,99859.0,99858.0,0.00628919]
[1733623673288,0.036099,99859.0,99858.0,0.00628919]
[1733623673794,0.036099,99859.0,99858.0,0.00316]
[1733623674897,0.03502,99858.0,99848.0,0.17976526]
[1733623675191,0.035024,99844.0,99843.0,0.27492934]
[1733623675488,0.035024,99844.0,99843.0,0.04316093]
[1733623675489,0.035104,99844.0,99843.0,0.04316093]
[1733623676490,0.035104,99844.0,99843.0,0.04416093]
[1733623676491,0.036104,99844.0,99843.0,0.04416093]
[1733623676996,0.037104,99844.0,99843.0,0.04716093]
[1733623677295,0.037104,99844.0,99843.0,0.2269787]
[1733623677593,0.037104,99844.0,99843.0,0.04716093]
[1733623678790,0.037104,99844.0,99843.0,0.04215436]
[1733623679100,0.037104,99844.0,99843.0,0.04215442]
[1733623679592,0.039104,99844.0,99843.0,0.03815442]
[1733623679798,0.399904,99844.0,99843.0,0.03815442]
[1733623680094,0.399904,99844.0,99843.0,0.00312942]
[1733623680095,0.41284417,99844.0,99843.0,0.00312942]
[1733623680290,0.41284417,99844.0,99836.0,0.17981777]
[1733623680492,0.035027,99838.0,99837.0,0.00312959]
[1733623682994,0.038027,99838.0,99837.0,0.00312959]
[1733623683687,0.040027,99838.0,99837.0,0.00312959]
[1733623683888,0.037027,99838.0,99837.0,0.00312959]
[1733623684195,0.12933067,99838.0,99837.0,0.00312959]
[1733623684397,0.12933067,99838.0,99830.0,0.0001272]
[1733623684398,0.040027,99838.0,99830.0,0.0001272]
[1733623684596,0.395829,99831.0,99830.0,0.0001272]
[1733623684893,0.395829,99831.0,99830.0,0.00325706]
[1733623686996,0.396829,99831.0,99830.0,0.0001272]
[1733623688505,0.035037,99807.0,99806.0,0.035038]
[1733623688698,0.035037,99807.0,99806.0,0.05569752]
[1733623688896,0.035117,99807.0,99806.0,0.05569752]
[1733623689406,0.035117,99807.0,99806.0,0.0431766]
[1733623690202,0.04516178,99807.0,99806.0,0.0431766]
[1733623690402,0.04616178,99807.0,99806.0,0.0431766]
[1733623691605,0.04716178,99807.0,99806.0,0.0441766]
[1733623692394,0.04816178,99807.0,99806.0,0.03816823]
[1733623693100,0.04916178,99807.0,99806.0,0.04317675]
[1733623693300,0.05116178,99807.0,99806.0,0.04317675]
[1733623693606,0.05216178,99807.0,99806.0,0.04317675]
[1733623694905,0.05216178,99807.0,99806.0,0.00813884]
[1733623695299,0.05316178,99807.0,99806.0,0.00813884]
[1733623695795,0.05316178,99807.0,99806.0,0.00313032]
[1733623695997,0.04516178,99807.0,99806.0,0.00313032]
[1733623696205,0.05316178,99807.0,99806.0,0.0081389]
[1733623696406,0.05316178,99807.0,99806.0,0.00313032]
[1733623697011,0.01812478,99807.0,99806.0,0.00313032]
[1733623697305,0.00808,99807.0,99806.0,0.03816832]
[1733623697713,0.00808,99807.0,99806.0,0.035038]
[1733623697906,0.00808,99807.0,99806.0,0.0381683]
[1733623698210,0.3608,99813.0,99812.0,0.035036]
[1733623698411,0.01020568,99817.0,99816.0,0.035034]
[1733623698612,0.035032,99823.0,99816.0,0.0031303]
[1733623698912,0.035032,99823.0,99822.0,0.00016]
[1733623699111,0.035032,99823.0,99822.0,0.00328997]
[1733623699511,0.035032,99823.0,99822.0,0.03832197]
[1733623699704,0.036032,99823.0,99822.0,0.03832197]
[1733623700105,0.039032,99823.0,99822.0,0.03832197]
[1733623701204,0.039032,99823.0,99822.0,0.03832191]
[1733623702411,0.004,99823.0,99822.0,0.03832191]
[1733623703815,0.01007018,99828.0,99822.0,0.04332975]
[1733623704001,0.08908856,99831.0,99830.0,0.035029]
[1733623704205,0.08908856,99831.0,99830.0,0.03815891]
[1733623704518,0.3608,99834.0,99830.0,0.00328987]
[1733623704519,0.37062292,99834.0,99830.0,0.00328987]
[1733623704709,0.37062292,99834.0,99833.0,0.035028]
[1733623704909,0.37062292,99834.0,99833.0,0.03831786]
[1733623705215,0.45971148,99834.0,99833.0,0.0383178]
[1733623705906,0.45971148,99834.0,99833.0,0.04332539]
[1733623706113,0.37362292,99834.0,99833.0,0.04332539]
[1733623706802,0.37362292,99834.0,99833.0,0.04432539]
[1733623707007,0.37962292,99834.0,99833.0,0.04432539]
[1733623707914,0.46899547,99834.0,99833.0,0.04432539]
[1733623708113,0.009,99834.0,99833.0,0.04432539]
[1733623709316,0.009,99834.0,99833.0,0.2240404]
[1733623710311,0.009,99834.0,99833.0,0.28422973]
[1733623710518,0.004,99834.0,99833.0,0.28822973]
[1733623710714,0.004,99834.0,99833.0,0.30074688]
[1733623710912,0.004,99834.0,99833.0,0.31512718]
[1733623711313,0.001,99834.0,99833.0,0.07822127]
[1733623711510,0.001,99834.0,99833.0,0.71462561]
[1733623711911,0.001,99834.0,99833.0,0.46034097]
[1733623712714,0.001,99834.0,99833.0,0.82114097]
[1733623713019,9.28e-05,99840.0,99839.0,0.035026]
[1733623713220,9.28e-05,99840.0,99839.0,0.04316182]
[1733623713419,9.28e-05,99840.0,99839.0,0.04332182]
[1733623714212,9.28e-05,99840.0,99839.0,0.04632182]
[1733623714917,9.28e-05,99840.0,99839.0,0.04131516]
[1733623715117,9.28e-05,99840.0,99839.0,0.038186]
[1733623715313,9.28e-05,99840.0,99839.0,0.04131524]
[1733623715520,9.28e-05,99840.0,99839.0,0.04632196]
[1733623715718,9.28e-05,99840.0,99839.0,0.03931524]
[1733623715913,9.28e-05,99840.0,99839.0,0.04131524]
[1733623716426,9.28e-05,99840.0,99839.0,0.03931524]
[1733623716722,9.28e-05,99840.0,99839.0,0.04031524]
[1733623717317,9.28e-05,99840.0,99839.0,0.00528924]
[1733623717318,0.0351188,99840.0,99839.0,0.00528924]
[1733623718223,0.0351188,99840.0,99839.0,0.00528957]
[1733623718423,0.0351188,99840.0,99839.0,0.00216]
[1733623718620,0.0361188,99840.0,99839.0,0.00116]
[1733623719122,0.18494952,99840.0,99839.0,0.00116]
[1733623719320,0.0361188,99840.0,99839.0,0.0042896]
[1733623719525,0.08479556,99840.0,99839.0,0.0032896]
[1733623719724,0.08579556,99840.0,99839.0,0.00016]
[1733623719918,0.08779556,99840.0,99839.0,0.00016]
[1733623720122,0.08679556,99840.0,99839.0,0.00016]
[1733623720317,0.09279556,99840.0,99839.0,0.00116]
[1733623720714,0.08679556,99840.0,99839.0,0.00016]
[1733623720924,0.09379556,99840.0,99839.0,0.00116]
[1733623721629,0.22469368,99840.0,99839.0,0.00116]
[1733623721828,0.27337044,99840.0,99839.0,0.00116]
[1733623723133,0.09479556,99840.0,99839.0,0.00116]
[1733623723430,0.09479842,99840.0,99839.0,0.00116]
[1733623723625,0.035029,99831.0,99830.0,0.00016]
[1733623723816,0.035029,99831.0,99830.0,0.00328974]
[1733623723817,0.44450862,99831.0,99830.0,0.00328974]
[1733623724016,0.44458862,99831.0,99830.0,0.00328974]
[1733623725226,0.44459045,99831.0,99830.0,0.00328974]
[1733623725421,0.397909,99831.0,99830.0,0.00328974]
[1733623726433,0.401909,99831.0,99830.0,0.00328974]
[1733623727020,0.402909,99831.0,99830.0,0.00328974]
[1733623727622,0.41269619,99831.0,99830.0,0.00328974]
[1733623728435,0.41369619,99831.0,99830.0,0.00329003]
[1733623730123,0.41369619,99831.0,99830.0,0.00016]
[1733623733322,0.46237935,99831.0,99830.0,0.00016]
[1733623734431,0.46237935,99831.0,99830.0,0.00329005]
[1733623736933,0.46237935,99831.0,99830.0,0.00016]
[1733623737429,0.46238135,99831.0,99830.0,0.00016]
[1733623740328,0.41369619,99831.0,99830.0,0.00016]
[1733623742828,0.53279406,99831.0,99830.0,0.00016]
[1733623743235,0.41369619,99831.0,99830.0,0.00016]
[1733623743739,0.53281485,99831.0,99830.0,0.00016]
[1733623743940,0.41369619,99831.0,99830.0,0.00329001]
[1733623744240,0.41369619,99831.0,99830.0,0.00016]
[1733623744443,0.41369619,99831.0,99830.0,0.00329]
[1733623748543,0.36888,99831.0,99830.0,0.038319]
[1733623748747,0.00808,99831.0,99830.0,0.21793867]
[1733623749045,0.00808,99831.0,99830.0,0.038319]
[1733623749544,0.0351188,99840.0,99830.0,0.29074109]
[1733623749545,0.08947995,99834.0,99830.0,0.29074109]
[1733623749738,0.08947995,99834.0,99833.0,0.035028]
[1733623749939,0.08947995,99839.0,99835.0,0.035028]
[1733623750139,9.28e-05,99840.0,99839.0,0.035026]
[1733623750140,0.08957275,99840.0,99839.0,0.035026]
[1733623750443,9.28e-05,99840.0,99839.0,0.038316]
[1733623751040,9.28e-05,99840.0,99839.0,0.03831541]
[1733623751445,0.0050928,99840.0,99839.0,0.03831541]
[1733623752343,0.0050928,99840.0,99839.0,0.21816102]
[1733623752754,0.0090928,99840.0,99839.0,0.24886102]
[1733623752949,0.0040928,99840.0,99839.0,0.24886102]